Cogmind - Beta 13 @@@ ROGUE MODE // 2024.04.07 @ 02:47:16 Player: lrwhittaker Result: Destroyed by Y-45 Defender with Beam Rifle Performance ------------- Evolutions (1) 500 Regions Visited (3) 600 Robots Destroyed (39) 195 Value Destroyed (872) 872 Prototype IDs (0) 0 Alien Tech Used (0) 0 Bonus (16) 16 TOTAL SCORE: 2183 Bonus ------- High Alert Combat Kills 16 Cogmind --------- Core Integrity 0/400 Matter 17/300 Energy 100/100 System Corruption 0% Temperature Cool (9) Movement Core (400) Ox7 Location -9/Storage Parts ------- > --- POWER (1) -------- (None) > --- PROPULSION (2) --- (None) > --- UTILITY (4) ------ Large Storage Unit Machine Analyzer Improved Signal Interpreter Transport Network Coupler > --- WEAPON (2) ------- Autogun > --- INVENTORY (15) --- ECM Suite Light Armor Plating Assault Rifle Assault Rifle Light Assault Rifle Heavy Assault Rifle Peak State ------------ > --- POWER ------------ Light Ion Engine > --- PROPULSION ------- Light Treads Light Treads > --- UTILITY ---------- Large Storage Unit Machine Analyzer Improved Signal Interpreter Transport Network Coupler > --- WEAPON ----------- Heavy Assault Rifle Rocket Launcher > --- INVENTORY -------- ECM Suite Light Armor Plating Assault Rifle Assault Rifle Light Assault Rifle Heavy Assault Rifle [Rating: 15] Favorites ----------- Power Light Ion Engine Engine Light Ion Engine Propulsion Light Treads Treads Light Treads Utility Large Storage Unit Device Sensor Array Storage Large Storage Unit Processor Improved Signal Interpreter Protection Light Armor Plating Weapon Assault Rifle Ballistic Gun Assault Rifle Launcher Grenade Launcher Build | -11 -10 -9 -9 ------- Run | Yrd Mat Mat Sto Slots Evolved 2 | . . 2 . Power . | . . . . Propulsion . | . . . . Utility 2 | . . 2 . Weapon . | . . . . Parts Attached 34 | 6 3 11 14 Power 4 | 1 . . 3 Engine 4 | 1 . . 3 Core . | . . . . Reactor . | . . . . Propulsion 5 | 2 . . 3 Treads 5 | 2 . . 3 Leg . | . . . . Wheel . | . . . . Hover . | . . . . Flight . | . . . . Utility 9 | 1 2 5 1 Device 2 | . . 2 . Storage 2 | 1 1 . . Processor 4 | . 1 2 1 Hackware . | . . . . Protection 1 | . . 1 . Artifact . | . . . . Weapon 16 | 2 1 6 7 Energy Gun . | . . . . Energy Cannon . | . . . . Ballistic Gun 11 | 2 . 4 5 Ballistic Cannon . | . . . . Launcher 5 | . 1 2 2 Special Weapon . | . . . . Impact Weapon . | . . . . Slashing Weapon . | . . . . Piercing Weapon . | . . . . Special Melee Weapon . | . . . . Unidentified Prototypes . | . . . . Parts Lost 10 | . . . 10 Power 3 | . . . 3 Propulsion 3 | . . . 3 Utility 1 | . . . 1 Weapon 3 | . . . 3 Highest Loss Streak 4 | . . . 4 To Critical Strikes . | . . . . Average Slot Usage (%) 93 | . 90 100 92 Engine 10 | . 14 11 8 Treads 22 | . 28 22 18 Device 6 | . . 14 7 Storage 12 | . 14 11 11 Processor 15 | . 4 14 24 Protection 1 | . . 4 . Ballistic Gun 18 | . 18 18 18 Launcher 5 | . 9 3 2 Naked Turns . | . . . . Heaviest Build 33 | 11 28 33 30 Greatest Support 40 | 40 40 40 40 Greatest Overweight (x) 8 | . . . 8 Average Overweight (x) . | . . . . Largest Inventory Capacity 15 | 8 15 15 15 Average Capacity 14 | 7 14 15 15 Most Carried 9 | 1 6 7 9 Average Carried 5 | . 4 5 7 Final Capacity 15 | 8 15 15 15 Final Carried 7 | 1 6 7 6 Class Distribution -------------------- 59% | Mutant 31% | Skirmisher 7% | Scavenger-Mutant Dominant Class ---------------- Mutant | -10/Materials Mutant | -9/Materials Skirmisher | -9/Storage Resources | -11 -10 -9 -9 ----------- Run | Yrd Mat Mat Sto Matter Collected 854 | 238 107 326 183 Remotely . | . . . . Salvage Created 1046 | . 127 469 450 Parts 75 | . 12 38 25 Haulers Intercepted 2 | . 1 1 . Recyclers Shooed . | . . . . Parts Field Recycled . | . . . . Retrieved Matter . | . . . . Parts Self-Destructed . | . . . . Prevented . | . . . . Kills | -11 -10 -9 -9 ------- Run | Yrd Mat Mat Sto Combat Hostiles Destroyed 35 | . 7 14 14 Guns 25 | . 3 13 9 AOE 10 | . 4 1 5 Classes Destroyed 5 | . 3 1 1 Worker 2 | . . . 2 Hauler 2 | . 1 1 . Swarmer 18 | . 6 8 4 Grunt 9 | . 1 3 5 Sentry 8 | . . 3 5 Best Kill Streak 6 | . 5 6 6 Combat Bots Only 6 | . 4 6 5 Max Kills in Single Turn 4 | . 4 1 3 Gunslinging . | . . . . Exploded 4 | . 4 1 3 Melee . | . . . . Uniques/NPCs Destroyed . | . . . . Combat | -11 -10 -9 -9 -------- Run | Yrd Mat Mat Sto Hostile Shots Fired 252 | . 17 85 150 Missed 80 | . 7 29 44 Damage Taken 2076 | . 94 530 1452 Core 419 | . 12 73 334 Absorbed by Shields . | . . . . Regen/Repaired (Parts) 277 | . . . 277 Core Remaining (%) 97 | 100 95 . . Volleys Fired 101 | . 13 40 48 Largest 2 | . 2 2 2 Hottest 56 | . 50 53 56 Shots Fired 182 | . 22 70 90 Gun 166 | . 19 68 79 Cannon . | . . . . Launcher 16 | . 3 2 11 Special . | . . . . Kinetic 166 | . 19 68 79 Thermal . | . . . . Explosive 16 | . 3 2 11 Electromagnetic . | . . . . Robot Hit Streak 19 | . 4 19 8 Robot Miss Streak 6 | . 6 3 4 Penetration Max . | . . . . Secondary Targets 4 | . 1 . 3 Max Gunslinging Chain 1 | . 1 . 1 Shots Hit Robots 115 | . 9 47 59 Core Hits 59 | . 10 21 28 Critical Kills 1 | . . 1 . Critical Parts Destroyed . | . . . . Critical Strikes 1 | . . 1 . Destroy 1 | . . 1 . Melee Attacks . | . . . . Impact . | . . . . Slashing . | . . . . Piercing . | . . . . Sneak Attacks . | . . . . Combat Hostiles . | . . . . Follow-up Attacks . | . . . . Damage Inflicted 2452 | . 400 721 1331 Guns 1510 | . 102 617 791 Cannons . | . . . . Explosions 938 | . 295 104 539 Melee . | . . . . Ramming 4 | . 3 . 1 Kinetic 1510 | . 102 617 791 Thermal . | . . . . Explosive 938 | . 295 104 539 Electromagnetic . | . . . . Impact . | . . . . Slashing . | . . . . Piercing . | . . . . Highest Corruption . | . . . . Average Corruption . | . . . . Corruption Purged . | . . . . Corruption Blocked . | . . . . Overload Shots . | . . . . Overflow Damage 65 | . . . 65 Projectiles . | . . . . Explosions 65 | . . . 65 Melee . | . . . . Knockbacks . | . . . . Impact . | . . . . Kinetic . | . . . . Secondary . | . . . . Self-Inflicted Damage 102 | . . . 102 Shots 5 | . . . 5 Rammed 4 | . 1 . 3 Targets Rammed 4 | . 1 . 3 Kicked . | . . . . Crushed . | . . . . Highest Temperature 31 | . 2 3 31 Average Temperature 9 | . 2 3 10 Received Heat Transfer 654 | . 12 75 567 Siege Activations . | . . . . Robots Corrupted . | . . . . Combat Hostiles . | . . . . Parts Fried . | . . . . Impact Corruptions . | . . . . Robots Melted . | . . . . Combat Hostiles . | . . . . Parts Melted . | . . . . Heat Transferred . | . . . . Parts Sabotaged . | . . . . Parts Stolen . | . . . . Parts Stripped . | . . . . Power Chain Reactions . | . . . . Alert | -11 -10 -9 -9 ------- Run | Yrd Mat Mat Sto Peak Influence 437 | . 124 437 415 Initial 100 | . . 52 100 Average 163 | . 80 241 207 Maximum Alert Level 2 | . . 2 2 Low Security (%) 63 | 100 100 43 39 Level 1 27 | . . 25 57 Level 2 8 | . . 31 3 Level 3 . | . . . . Level 4 . | . . . . Level 5 . | . . . . High Security . | . . . . Max Security . | . . . . Squads Dispatched 4 | . . 1 3 Investigation 3 | . . 1 2 Extermination . | . . . . Reinforcement 1 | . . . 1 Assault . | . . . . Garrison . | . . . . Intercept . | . . . . Searches Triggered . | . . . . Construction Impeded . | . . . . Haulers Reinforced . | . . . . Active Scanning Responses . | . . . . Cargo Convoy Interrupts . | . . . . Stealth | -11 -10 -9 -9 --------- Run | Yrd Mat Mat Sto Distress Signals 1 | . . . 1 Communications Jammed . | . . . . Distress Signals . | . . . . Times Spotted 51 | . 11 14 26 Peak Tracking Total 8 | . 4 5 8 Tactical Retreats . | . . . . Traps | -11 -10 -9 -9 ------- Run | Yrd Mat Mat Sto Traps Triggered 2 | . 1 1 . Indirectly . | . . . . Trap Hack Attempts . | . . . . Triggered . | . . . . Disarmed . | . . . . Reprogrammed . | . . . . Reused . | . . . . Traps Extracted . | . . . . Installed . | . . . . Triggered . | . . . . Machines | -11 -10 -9 -9 ---------- Run | Yrd Mat Mat Sto Machines Disabled 2 | . . . 2 Max in Single Turn 1 | . . . 1 Machines Repaired . | . . . . Machines Dismantled . | . . . . Machines Sabotaged . | . . . . Overloaded Fab Kills . | . . . . Hacking | -11 -10 -9 -9 --------- Run | Yrd Mat Mat Sto Machines Accessed 13 | . 4 2 7 Terminals 11 | . 4 2 5 Fabricators . | . . . . Repair Stations 2 | . . . 2 Recycling Units . | . . . . Scanalyzers . | . . . . Garrison Access . | . . . . Total Hacks 40 | . 12 5 23 Successful 13 | . 2 . 11 Failed 27 | . 10 5 12 Catastrophic 3 | . 1 . 2 Database Lockouts . | . . . . Manual 12 | . 7 3 2 Terminals 32 | . 12 5 15 Fabricators . | . . . . Repair Stations 8 | . . . 8 Recycling Units . | . . . . Scanalyzers . | . . . . Garrison Access . | . . . . Terminal Hacks 7 | . 2 . 5 Part Schematic 1 | . . . 1 Open Door 1 | . . . 1 Hauler Manifests 1 | . 1 . . Registered Components 2 | . 1 . 1 Zone Layout 2 | . . . 2 Fabricator Hacks . | . . . . Repair Station Hacks 6 | . . . 6 Scan Component 3 | . . . 3 Repair 3 | . . . 3 Recycling Unit Hacks . | . . . . Scanalyzer . | . . . . Garrison Access Hacks . | . . . . Unauthorized Hacks . | . . . . Terminals . | . . . . Fabricators . | . . . . Repair Stations . | . . . . Recycling Units . | . . . . Scanalyzers . | . . . . Garrison Access . | . . . . Data Cores Recovered . | . . . . Used . | . . . . Hacking Detections 13 | . 4 2 7 Full Trace Events 2 | . . . 2 Feedback Events . | . . . . Feedback Blocked . | . . . . Robot Schematics Acquired . | . . . . Robots Built . | . . . . Authchips . | . . . . Time . | . . . . Total Robot Build Rating . | . . . . Part Schematics Acquired 1 | . . . 1 Parts Built . | . . . . Authchips . | . . . . Time . | . . . . Total Part Build Rating . | . . . . Parts Repaired 3 | . . . 3 Time 84 | . . . 84 Parts Recycled . | . . . . Recycled Matter . | . . . . Retrieved Matter . | . . . . Retrieved Components . | . . . . Parts Scanalyzed . | . . . . Part Schematics Acquired . | . . . . Parts Damaged . | . . . . Bothacking | -11 -10 -9 -9 ------------ Run | Yrd Mat Mat Sto Used RIF Installer . | . . . . Robots Hacked . | . . . . Non-combat . | . . . . Combat . | . . . . Robot Hacks Applied . | . . . . Relay Couplers Released . | . . . . Fabnet Peak Effective % . | . . . . Robots Rewired . | . . . . Allies Hacked . | . . . . Hacks Repelled . | . . . . Allies | -11 -10 -9 -9 -------- Run | Yrd Mat Mat Sto Total Allies . | . . . . Largest Group . | . . . . Highest-Rated Group . | . . . . Highest-Rated Ally . | . . . . Total Orders . | . . . . Ally Attacks . | . . . . Total Damage . | . . . . Kills . | . . . . Allies Corrupted . | . . . . Allies Melted . | . . . . Intel | -11 -10 -9 -9 ------- Run | Yrd Mat Mat Sto Robot Analysis Total . | . . . . Derelict Logs Recovered . | . . . . Drone Launches . | . . . . Drone Recoveries . | . . . . Exploration | -11 -10 -9 -9 ------------- Run | Yrd Mat Mat Sto Turns Passed 1871 | 75 637 446 713 Spaces Moved 830 | 44 371 197 218 Core 8 | 4 . . 4 Treads 822 | 40 371 197 214 Legs . | . . . . Wheels . | . . . . Hover . | . . . . Flight . | . . . . Fastest Speed 50 | 50 160 160 160 Average Speed 164 | 150 160 160 177 Slowest Speed 450 | 160 160 160 450 Overloaded Moves . | . . . . Propulsion Burnouts . | . . . . Robots Hopped . | . . . . Cave-ins Triggered . | . . . . Exploration Rate (%) 31 | 4 58 20 45 Regions Visited 3 Branch Regions 1 Pre-discovered Areas . | . . . . Known Exits Taken 2 | . 1 1 . Unknown Exits Taken 1 | 1 . . . Scrap Searched . | . . . . Spaces Dug . | . . . . Terrain Destroyed 89 | . 11 8 70 Melee . | . . . . Projectile . | . . . . AOE 89 | . 11 8 70 Terrain Rammed . | . . . . Walls Destroyed . | . . . . Machines Disabled . | . . . . Actions | -11 -10 -9 -9 --------- Run | Yrd Mat Mat Sto Total 1138 | 50 393 254 441 Wait 159 | . . 3 156 Move 827 | 43 370 196 218 Hop . | . . . . Pick Up 9 | 1 4 2 2 Fast Attach 16 | 6 3 1 6 Attach 5 | . . 2 3 Detach 2 | . 1 1 . Swap 13 | . . 8 5 Drop 2 | . 1 1 . Fire 101 | . 13 40 48 Melee . | . . . . Ram 3 | . . . 3 Kick . | . . . . Crush 1 | . 1 . . Escape Stasis . | . . . . Rewire . | . . . . Trap . | . . . . Miscellaneous . | . . . . Route ------- -11/Scrapyard -10/Materials (discovered 2 exits: *Mat / [*Min]) -9/Materials -9/Storage History --------- Turn | Location | Event 19 | -11/Scrapyard | Discovered new exit (range 15) 76 | -11/Scrapyard | Entered Materials 228 | -10/Materials | Discovered new exit (range 16) 307 | -10/Materials | Build established: Mutant 701 | -10/Materials | Discovered new exit (range 4) 705 | -10/Materials | Identified exit to Materials 713 | -10/Materials | Entered another Materials area 713 | -9/Materials | Evolved 2 slots: Utility x2 1152 | -9/Materials | Discovered new exit (range 4) 1157 | -9/Materials | Identified exit to Storage 1159 | -9/Materials | Entered Storage 1239 | -9/Storage | Repaired Lgt. Treads 1266 | -9/Storage | Repaired Lgt. Treads 1325 | -9/Storage | Build established: Skirmisher 1393 | -9/Storage | Repaired Hvy. Assault Rifle 1705 | -9/Storage | Lost 3 parts (1p1n1u) 1845 | -9/Storage | Core integrity fell below 50% 1858 | -9/Storage | Core integrity fell below 20% 1872 | -9/Storage | Destroyed by Y-45 Defender with Beam Rifle Last Messages --------------- 01814_ K-01 Serf cleans the Terminal. 01829_ K-01 Serf cleans the Component Storage. 01833_ Rocket Launcher destroyed. 01834_ K-01 Serf cleans the Component Storage. 01837_ Hvy. Assault Rifle destroyed. 01841_ Lgt. Treads destroyed. 01848_ Acquired Autogun. 01850_ Critical hit (Burn: +37). 01853_ Acquired Autogun. 01861_ Critical hit (Burn: +37). 01862_ Slammed into G-47 Trooper. 01862_ Transport Network Coupler broken. 01862_ Destabilizing: Short circuit. 01862_ Autogun destroyed. 01864_ U-05 Engineer destroyed. 01864_ K-01 Serf collects debris. 01865_ G-34 Mercenary destroyed. 01867_ Slammed into G-47 Trooper. 01867_ Critical hit (Burn: +37). 01871_ Slammed into G-47 Trooper. Map ----- +----------------------------------------------------+ | | | | | ???????????????????????????????##############????? | | ???????????????????????????????# ????? | | ??????????????????????????????## ????? | | ??????????????????????????????# """"" """"" ????? | | ??????????????????????????????## """"" """"" ????? | | ???????????????????????????????# """"" """"" ????? | | ???????????????????????????????# ????? | | ???????????????????????????????######+#####+#????? | | ##????????????######???????????????# ????? | | ##???????????## # # #######????????# ????? | | ##???????????# # #????????# ### ###????? | | ##???????????# # ######???# ###+###????? | | ##???????????# # ##### # ????? | | ##????????#### #% """"" + # ????? | | ##????????#### # """" # T + ????? | | ??????###### # """ # ##/##### """""????? | | ??????#"""##"## ## ## ## " ????? | | ###?###"Y"#T ## ## ## ## " ????? | | !###T#" "##+####+##+####### ## % ## """""????? | | + % ## ## ????? | | =# ########### + """ ######+#????? | | # # # ####g## """ """## ????? | | + / """" # # [Y*=# """ Y"## ????? | | ###### # "" " # g@!kg[ # """ """## ????? | | #????# # """ " + #%|[[ # """ ##### ????? | | #????# + " """ # #![[ # #???# ????? | | ###????# #### " "" ## # Y # #???# ????? | | ####### #??# """" ## #""" # #???# ????? | | + #??# ## #""" =### ###???# ????? | | #########?##########+## #""" #?###?????# ????? | | #?????????# #?#????#""" #?????????????????? | | #?????????# #?#????#""" #?????????????????? | | #### ##???# #?#???????? ?????????????????? | | #???# #?#???????? #?????????????????? | | * ?????????????????????###?????????????????? | | = ???????????????????"""""?????????????????? | | ???????????????????""T""?????????????????? | | # #?????????????????????????????????????????? | | ##??? #?????????????????????????????????????????? | | ?????????????????????????????????????????????????? | | ?????????????????????????????????????????????????? | | ?????????????????????????????????????????????????? | | ?????????????????????????????????????????????????? | | ?????????????????????????????????????????????????? | | ?????????????????????????????????????????????????? | | ?????????????????????????????????????????????????? | | ?????????????????????????????????????????????????? | | ##???????????????????????????????????????????????? | +----------------------------------------------------+ Best States ------------- Heat Dissipation 28 Energy Generation 10 Energy Capacity 125 Matter Stores 300 Matter Capacity 300 Sight Range 16 Robot Scan Range 14 Terrain Scan Density 10 ECM Strength 1 Armor Coverage 150 Evasion (%) 40 Recoil Reduction 2 Item Schematics ----------------- VTOL Module | -9/Storage | Hacked Robot Schematics ------------------ None Fabricated ------------ Nothing Alien Tech Used ----------------- None Achievements -------------- None Challenges ------------ None Game ------ Seed ActiveKineticRedirector Manual? 0 Play Time 00:31:19 Cumulative 10.5 hours Start 2024.04.07 @ 02:17:40 End 2024.04.07 @ 02:47:16 Sessions 1 Manual Loads 0 Difficulty Rogue Special Mode None Game No. 8 Rogue 8 Adventurer 0 Explorer 0 Win Type - Total 0 Types 0/0/0/0/0/0/0/0/0 Lore% 7 Gallery% 15 Achievement% 17 Wizard Run 0 Options --------- Layout 0 ASCII 0 Keyboard 0 Movement Mouse Keybinds 0 Fullscreen 1 Font 18/SmallcapsGlow Map View 76x50 Zoom Use 0% Tactical HUD 1 Map Filters NONE Filters NONE Steam 1 RUN: 01a69393-549d-4573-983d-0d3aeab72669